[Event "Titled Tuesday Blitz February 07 Early 2023"]
[White "Wahedi, Ahmad Siar"]
[Black "Stolz, Mike"]
[WhiteFideId "4651260"]
[BlackFideId "4617134"]
[WhiteElo "2274"]
[BlackElo "2330"]
[Result "1-0"]
[Round "03"]
[TimeControl "180+2"]
[Date "2023.02.07"]
[WhiteClock "0:01:08"]
[BlackClock "0:00:25"]

1. e4 {[%clk 0:03:00]}  c5 {[%clk 0:02:59]} 2. Nf3 {[%clk 0:03:00]}  e6 {[%clk 0:03:00]} 3. d4 {[%clk 0:03:00]}  cxd4 {[%clk 0:03:01]} 4. Nxd4 {[%clk 0:03:01]}  Nc6 {[%clk 0:03:01]} 5. Nb5 {[%clk 0:02:58]}  d6 {[%clk 0:03:00]} 6. c4 {[%clk 0:02:58]}  Nf6 {[%clk 0:02:59]} 7. N5c3 {[%clk 0:02:55]}  Be7 {[%clk 0:02:58]} 8. Be2 {[%clk 0:02:56]}  O-O {[%clk 0:02:58]} 9. O-O {[%clk 0:02:56]}  a6 {[%clk 0:02:55]} 10. h3 {[%clk 0:02:55]}  Qa5 {[%clk 0:02:48]} 11. Be3 {[%clk 0:02:53]}  Rd8 {[%clk 0:02:47]} 12. a3 {[%clk 0:02:50]}  Bd7 {[%clk 0:02:44]} 13. Nd2 {[%clk 0:02:41]}  Be8 {[%clk 0:02:39]} 14. b4 {[%clk 0:02:37]}  Qc7 {[%clk 0:02:34]} 15. Rc1 {[%clk 0:02:36]}  Rac8 {[%clk 0:02:30]} 16. Qb3 {[%clk 0:02:33]}  Ne5 {[%clk 0:02:19]} 17. f4 {[%clk 0:02:27]}  Ng6 {[%clk 0:02:19]} 18. f5 {[%clk 0:02:27]}  Ne5 {[%clk 0:02:18]} 19. fxe6 {[%clk 0:02:25]}  fxe6 {[%clk 0:02:19]} 20. Rf2 {[%clk 0:02:01]}  Bf7 {[%clk 0:02:19]} 21. Rcf1 {[%clk 0:02:00]}  d5 {[%clk 0:02:08]} 22. exd5 {[%clk 0:01:56]}  exd5 {[%clk 0:02:08]} 23. Nxd5 {[%clk 0:01:50]}  Nxd5 {[%clk 0:02:06]} 24. cxd5 {[%clk 0:01:50]}  Bxd5 {[%clk 0:02:03]} 25. Qb1 {[%clk 0:01:41]}  Bh4 {[%clk 0:01:32]} 26. Rf5 {[%clk 0:01:37]}  Be6 {[%clk 0:01:29]} 27. Rh5 {[%clk 0:01:35]}  Ng6 {[%clk 0:01:07]} 28. Bd3 {[%clk 0:01:32]}  Qg3 {[%clk 0:00:54]} 29. Rf3 {[%clk 0:01:11]}  Qc7 {[%clk 0:00:25]} 30. Bxg6 {[%clk 0:01:08]} 1-0


[Site "https://www.chess.com"]

[Event "Titled Tuesday Blitz February 07 Early 2023"]
[White "Hajiyev, Kanan"]
[Black "Fan_Of_Chucky"]
[WhiteFideId "13404148"]
[WhiteElo "2197"]
[BlackElo "2269"]
[Result "1-0"]
[Round "03"]
[TimeControl "180+2"]
[Date "2023.02.07"]
[WhiteClock "0:00:10"]
[BlackClock "0:00:02"]

1. d4 {[%clk 0:03:00]}  Nf6 {[%clk 0:03:00]} 2. Nf3 {[%clk 0:03:00]}  g6 {[%clk 0:03:00]} 3. c4 {[%clk 0:03:01]}  Bg7 {[%clk 0:03:01]} 4. g3 {[%clk 0:03:02]}  O-O {[%clk 0:03:00]} 5. Bg2 {[%clk 0:03:01]}  d5 {[%clk 0:03:01]} 6. cxd5 {[%clk 0:03:01]}  Nxd5 {[%clk 0:03:02]} 7. O-O {[%clk 0:03:01]}  Nb6 {[%clk 0:03:02]} 8. a4 {[%clk 0:03:01]}  Nc6 {[%clk 0:03:01]} 9. a5 {[%clk 0:03:00]}  Nc4 {[%clk 0:03:01]} 10. a6 {[%clk 0:02:53]}  bxa6 {[%clk 0:02:57]} 11. Nbd2 {[%clk 0:02:21]}  Nxd2 {[%clk 0:02:52]} 12. Bxd2 {[%clk 0:02:15]}  Bb7 {[%clk 0:02:47]} 13. Bc3 {[%clk 0:02:11]}  Rb8 {[%clk 0:02:43]} 14. e3 {[%clk 0:02:06]}  Qd7 {[%clk 0:02:00]} 15. Qc2 {[%clk 0:02:04]}  a5 {[%clk 0:01:49]} 16. Rfd1 {[%clk 0:02:01]}  Nb4 {[%clk 0:01:47]} 17. Qd2 {[%clk 0:01:58]}  Qg4 {[%clk 0:01:38]} 18. h3 {[%clk 0:01:39]}  Qh5 {[%clk 0:01:20]} 19. g4 {[%clk 0:01:38]}  Qb5 {[%clk 0:01:05]} 20. Bf1 {[%clk 0:01:20]}  Qd5 {[%clk 0:00:57]} 21. Bg2 {[%clk 0:01:18]}  Qb5 {[%clk 0:00:54]} 22. Rdc1 {[%clk 0:01:12]}  Rfd8 {[%clk 0:00:45]} 23. Qe1 {[%clk 0:01:08]}  Nd3 {[%clk 0:00:44]} 24. Qf1 {[%clk 0:01:03]}  Bxf3 {[%clk 0:00:36]} 25. Bxf3 {[%clk 0:01:00]}  Nxc1 {[%clk 0:00:35]} 26. Qxb5 {[%clk 0:00:56]}  Rxb5 {[%clk 0:00:36]} 27. Rxc1 {[%clk 0:00:57]}  e5 {[%clk 0:00:30]} 28. Bc6 {[%clk 0:00:49]}  Rb3 {[%clk 0:00:14]} 29. dxe5 {[%clk 0:00:43]}  a4 {[%clk 0:00:12]} 30. Bxa4 {[%clk 0:00:40]}  Rbb8 {[%clk 0:00:12]} 31. f4 {[%clk 0:00:37]}  Rd3 {[%clk 0:00:11]} 32. Kf2 {[%clk 0:00:35]}  g5 {[%clk 0:00:09]} 33. Bc2 {[%clk 0:00:30]}  Rd5 {[%clk 0:00:08]} 34. Ra1 {[%clk 0:00:29]}  gxf4 {[%clk 0:00:08]} 35. exf4 {[%clk 0:00:30]}  Bf8 {[%clk 0:00:06]} 36. Be4 {[%clk 0:00:30]}  Rdd8 {[%clk 0:00:05]} 37. Kf3 {[%clk 0:00:30]}  Bc5 {[%clk 0:00:05]} 38. Rc1 {[%clk 0:00:30]}  Bb6 {[%clk 0:00:05]} 39. f5 {[%clk 0:00:30]}  Bd4 {[%clk 0:00:06]} 40. Ba5 {[%clk 0:00:17]}  Rb3+ {[%clk 0:00:05]} 41. Bc3 {[%clk 0:00:12]}  Bxc3 {[%clk 0:00:03]} 42. bxc3 {[%clk 0:00:13]}  Rd2 {[%clk 0:00:02]} 43. h4 {[%clk 0:00:10]}  Ra2 {[%clk 0:00:02]} 44. Bd5 {[%clk 0:00:09]}  Raa3 {[%clk 0:00:02]} 45. Bxb3 {[%clk 0:00:09]}  Rxb3 {[%clk 0:00:03]} 46. Ke4 {[%clk 0:00:09]}  a5 {[%clk 0:00:03]} 47. Kd4 {[%clk 0:00:10]}  Rb2 {[%clk 0:00:02]} 48. Ra1 {[%clk 0:00:09]}  Rg2 {[%clk 0:00:02]} 49. g5 {[%clk 0:00:10]} 1-0


[Site "https://www.chess.com"]

[Event "Titled Tuesday Blitz February 07 Early 2023"]
[White "Tarasova, Viktoriya"]
[Black "Smietanska, Wiktoria"]
[WhiteFideId "4175840"]
[BlackFideId "21869359"]
[WhiteElo "2226"]
[BlackElo "1936"]
[Result "1-0"]
[Round "03"]
[TimeControl "180+2"]
[Date "2023.02.07"]
[WhiteClock "0:01:00"]
[BlackClock "0:00:02"]

1. d4 {[%clk 0:03:00]}  Nf6 {[%clk 0:02:58]} 2. c4 {[%clk 0:03:00]}  g6 {[%clk 0:02:57]} 3. Nc3 {[%clk 0:02:59]}  Bg7 {[%clk 0:02:57]} 4. e4 {[%clk 0:02:58]}  d6 {[%clk 0:02:58]} 5. h3 {[%clk 0:02:59]}  O-O {[%clk 0:02:58]} 6. Be3 {[%clk 0:02:59]}  e5 {[%clk 0:02:56]} 7. d5 {[%clk 0:03:00]}  Nh5 {[%clk 0:02:51]} 8. Be2 {[%clk 0:02:48]}  Nf4 {[%clk 0:02:46]} 9. Bf3 {[%clk 0:02:47]}  f5 {[%clk 0:01:24]} 10. g3 {[%clk 0:02:46]}  fxe4 {[%clk 0:01:22]} 11. Nxe4 {[%clk 0:02:43]}  Nh5 {[%clk 0:00:56]} 12. Bxh5 {[%clk 0:02:37]}  gxh5 {[%clk 0:00:54]} 13. Qxh5 {[%clk 0:02:37]}  Bf5 {[%clk 0:00:53]} 14. Ng5 {[%clk 0:02:32]}  c6 {[%clk 0:00:44]} 15. Ne2 {[%clk 0:02:26]}  cxd5 {[%clk 0:00:41]} 16. cxd5 {[%clk 0:02:13]}  Qa5+ {[%clk 0:00:39]} 17. Nc3 {[%clk 0:02:12]}  e4 {[%clk 0:00:33]} 18. Rc1 {[%clk 0:01:53]}  h6 {[%clk 0:00:27]} 19. g4 {[%clk 0:01:37]}  hxg5 {[%clk 0:00:07]} 20. gxf5 {[%clk 0:01:35]}  Rxf5 {[%clk 0:00:06]} 21. Qe8+ {[%clk 0:01:32]}  Rf8 {[%clk 0:00:06]} 22. Qxe4 {[%clk 0:01:22]}  Na6 {[%clk 0:00:04]} 23. Qe6+ {[%clk 0:01:15]}  Rf7 {[%clk 0:00:04]} 24. O-O {[%clk 0:01:10]}  Rf8 {[%clk 0:00:03]} 25. Ne4 {[%clk 0:01:05]}  Nc5 {[%clk 0:00:02]} 26. Bxc5 {[%clk 0:01:04]}  dxc5 {[%clk 0:00:02]} 27. Nxg5 {[%clk 0:01:02]}  Qb6 {[%clk 0:00:02]} 28. Qxb6 {[%clk 0:01:00]}  axb6 {[%clk 0:00:02]} 29. Nxf7 {[%clk 0:01:01]}  Rxf7 {[%clk 0:00:02]} 30. b3 {[%clk 0:01:00]} 1-0


[Site "https://www.chess.com"]

[Event "Titled Tuesday Blitz February 07 Early 2023"]
[White "Zaksaite, Salomeja"]
[Black "Maung, Maung Kyaw Zaw Hein"]
[WhiteFideId "12801496"]
[BlackFideId "13001698"]
[WhiteElo "2283"]
[BlackElo "2119"]
[Result "0-1"]
[Round "03"]
[TimeControl "180+2"]
[Date "2023.02.07"]
[WhiteClock "0:00:01"]
[BlackClock "0:00:12"]

1. e4 {[%clk 0:02:59]}  c6 {[%clk 0:03:00]} 2. d4 {[%clk 0:02:58]}  d5 {[%clk 0:03:01]} 3. exd5 {[%clk 0:02:59]}  cxd5 {[%clk 0:03:01]} 4. Bd3 {[%clk 0:03:00]}  Nc6 {[%clk 0:03:01]} 5. c3 {[%clk 0:02:58]}  Nf6 {[%clk 0:03:01]} 6. h3 {[%clk 0:02:52]}  g6 {[%clk 0:03:01]} 7. Nf3 {[%clk 0:02:52]}  Bf5 {[%clk 0:03:01]} 8. Be2 {[%clk 0:02:52]}  Bg7 {[%clk 0:03:00]} 9. O-O {[%clk 0:02:51]}  O-O {[%clk 0:03:00]} 10. Nbd2 {[%clk 0:02:48]}  Rb8 {[%clk 0:03:00]} 11. a4 {[%clk 0:02:47]}  a6 {[%clk 0:02:58]} 12. Nb3 {[%clk 0:02:43]}  Nd7 {[%clk 0:02:48]} 13. Re1 {[%clk 0:02:41]}  Re8 {[%clk 0:02:47]} 14. Bf1 {[%clk 0:02:40]}  e5 {[%clk 0:02:47]} 15. dxe5 {[%clk 0:02:40]}  Ndxe5 {[%clk 0:02:47]} 16. Nxe5 {[%clk 0:02:40]}  Bxe5 {[%clk 0:02:41]} 17. Be3 {[%clk 0:02:34]}  Qh4 {[%clk 0:02:34]} 18. Qd2 {[%clk 0:02:19]}  Qf6 {[%clk 0:02:12]} 19. Rad1 {[%clk 0:02:10]}  Rbd8 {[%clk 0:02:12]} 20. Bg5 {[%clk 0:02:09]}  Qg7 {[%clk 0:02:06]} 21. Bxd8 {[%clk 0:02:09]}  Rxd8 {[%clk 0:02:07]} 22. Nd4 {[%clk 0:02:06]}  Nxd4 {[%clk 0:02:04]} 23. cxd4 {[%clk 0:02:07]}  Bd6 {[%clk 0:02:04]} 24. Bd3 {[%clk 0:01:56]}  Be6 {[%clk 0:02:03]} 25. Be2 {[%clk 0:01:49]}  h5 {[%clk 0:02:00]} 26. Bf3 {[%clk 0:01:49]}  Qf8 {[%clk 0:01:55]} 27. Qg5 {[%clk 0:01:34]}  Be7 {[%clk 0:01:41]} 28. Qe3 {[%clk 0:01:11]}  Bd6 {[%clk 0:01:39]} 29. Qd3 {[%clk 0:01:06]}  Kg7 {[%clk 0:01:33]} 30. Qb3 {[%clk 0:00:57]}  Bb8 {[%clk 0:01:25]} 31. h4 {[%clk 0:00:14]}  Qd6 {[%clk 0:01:19]} 32. g3 {[%clk 0:00:14]}  g5 {[%clk 0:01:13]} 33. hxg5 {[%clk 0:00:11]}  h4 {[%clk 0:01:13]} 34. Bg2 {[%clk 0:00:08]}  hxg3 {[%clk 0:01:10]} 35. Qxg3 {[%clk 0:00:08]}  Qe7 {[%clk 0:01:05]} 36. Qe3 {[%clk 0:00:06]}  Bd6 {[%clk 0:00:47]} 37. f4 {[%clk 0:00:04]}  Qc7 {[%clk 0:00:44]} 38. Rf1 {[%clk 0:00:03]}  Qd7 {[%clk 0:00:32]} 39. Rc1 {[%clk 0:00:02]}  Bb8 {[%clk 0:00:26]} 40. Rce1 {[%clk 0:00:01]}  Rh8 {[%clk 0:00:22]} 41. Qg3 {[%clk 0:00:02]}  Qxa4 {[%clk 0:00:19]} 42. Rxe6 {[%clk 0:00:02]}  fxe6 {[%clk 0:00:17]} 43. Qe3 {[%clk 0:00:02]}  Qd7 {[%clk 0:00:16]} 44. Re1 {[%clk 0:00:02]}  Rf8 {[%clk 0:00:15]} 45. Bh3 {[%clk 0:00:02]}  Bxf4 {[%clk 0:00:13]} 46. Qxe6 {[%clk 0:00:01]}  Qxe6 {[%clk 0:00:13]} 47. Bxe6 {[%clk 0:00:02]}  Re8 {[%clk 0:00:12]} 48. g6 {[%clk 0:00:02]}  Kf6 {[%clk 0:00:11]} 49. Kf1 {[%clk 0:00:02]}  Rxe6 {[%clk 0:00:11]} 50. g7 {[%clk 0:00:02]}  Rxe1+ {[%clk 0:00:11]} 51. Kxe1 {[%clk 0:00:01]}  Kxg7 {[%clk 0:00:11]} 52. Ke2 {[%clk 0:00:01]}  Kf6 {[%clk 0:00:12]} 0-1


[Site "https://www.chess.com"]

[Event "Titled Tuesday Blitz February 07 Early 2023"]
[White "Nissinen, Niilo Man"]
[Black "Sanchez, Robert"]
[WhiteFideId "30950767"]
[BlackFideId "2034360"]
[WhiteElo "1958"]
[BlackElo "1966"]
[Result "0-1"]
[Round "03"]
[TimeControl "180+2"]
[Date "2023.02.07"]
[WhiteClock "0:01:04"]
[BlackClock "0:01:35"]

1. e4 {[%clk 0:03:00]}  e6 {[%clk 0:02:59]} 2. d4 {[%clk 0:03:00]}  d5 {[%clk 0:03:00]} 3. e5 {[%clk 0:03:01]}  c5 {[%clk 0:02:59]} 4. c3 {[%clk 0:03:01]}  Nc6 {[%clk 0:03:00]} 5. Nf3 {[%clk 0:03:00]}  Bd7 {[%clk 0:03:00]} 6. a3 {[%clk 0:03:00]}  f6 {[%clk 0:02:59]} 7. b4 {[%clk 0:02:50]}  fxe5 {[%clk 0:02:55]} 8. Nxe5 {[%clk 0:02:48]}  Nxe5 {[%clk 0:02:55]} 9. dxe5 {[%clk 0:02:49]}  Qc7 {[%clk 0:02:55]} 10. f4 {[%clk 0:02:46]}  O-O-O {[%clk 0:02:53]} 11. Be3 {[%clk 0:02:43]}  Nh6 {[%clk 0:02:46]} 12. Nd2 {[%clk 0:02:38]}  Nf5 {[%clk 0:02:46]} 13. Bf2 {[%clk 0:02:38]}  g5 {[%clk 0:02:46]} 14. g4 {[%clk 0:02:16]}  Ng7 {[%clk 0:02:27]} 15. Bg3 {[%clk 0:02:07]}  h5 {[%clk 0:02:25]} 16. fxg5 {[%clk 0:02:04]}  h4 {[%clk 0:02:25]} 17. Bf4 {[%clk 0:02:02]}  Be7 {[%clk 0:02:21]} 18. Nb3 {[%clk 0:01:56]}  Rdf8 {[%clk 0:02:20]} 19. Qd2 {[%clk 0:01:56]}  Rhg8 {[%clk 0:02:07]} 20. b5 {[%clk 0:01:51]}  Ne8 {[%clk 0:01:59]} 21. O-O-O {[%clk 0:01:49]}  Rxf4 {[%clk 0:01:58]} 22. Qxf4 {[%clk 0:01:29]}  Bxg5 {[%clk 0:01:58]} 23. Qxg5 {[%clk 0:01:30]}  Rxg5 {[%clk 0:01:58]} 24. h3 {[%clk 0:01:25]}  Qxe5 {[%clk 0:01:57]} 25. Kc2 {[%clk 0:01:24]}  Qd6 {[%clk 0:01:45]} 26. Bg2 {[%clk 0:01:16]}  Bxb5 {[%clk 0:01:42]} 27. Rhe1 {[%clk 0:01:10]}  c4 {[%clk 0:01:40]} 28. Nd4 {[%clk 0:01:07]}  Ba4+ {[%clk 0:01:40]} 29. Kb2 {[%clk 0:01:05]}  Bxd1 {[%clk 0:01:40]} 30. Rxe6 {[%clk 0:01:04]}  Qh2 {[%clk 0:01:35]} 0-1


[Site "https://www.chess.com"]

[Event "Titled Tuesday Blitz February 07 Early 2023"]
[White "Smith, Garrett L"]
[Black "Avalos Parra, Joao"]
[WhiteFideId "2024829"]
[BlackFideId "3402541"]
[WhiteElo "2047"]
[BlackElo "2185"]
[Result "0-1"]
[Round "03"]
[TimeControl "180+2"]
[Date "2023.02.07"]
[WhiteClock "0:00:51"]
[BlackClock "0:01:27"]

1. e4 {[%clk 0:03:00]}  e5 {[%clk 0:03:00]} 2. Nf3 {[%clk 0:03:00]}  Nc6 {[%clk 0:03:00]} 3. Bc4 {[%clk 0:03:00]}  Bc5 {[%clk 0:03:00]} 4. b4 {[%clk 0:02:59]}  Bxb4 {[%clk 0:03:00]} 5. c3 {[%clk 0:02:59]}  Be7 {[%clk 0:03:00]} 6. d4 {[%clk 0:02:58]}  Na5 {[%clk 0:03:01]} 7. Be2 {[%clk 0:02:58]}  exd4 {[%clk 0:02:58]} 8. Qxd4 {[%clk 0:02:58]}  Nf6 {[%clk 0:02:54]} 9. e5 {[%clk 0:02:50]}  Nc6 {[%clk 0:02:54]} 10. Qf4 {[%clk 0:02:50]}  Nd5 {[%clk 0:02:53]} 11. Qg3 {[%clk 0:02:51]}  g6 {[%clk 0:02:44]} 12. h4 {[%clk 0:02:40]}  d6 {[%clk 0:02:21]} 13. Bh6 {[%clk 0:02:34]}  dxe5 {[%clk 0:02:19]} 14. Nxe5 {[%clk 0:02:16]}  Qd6 {[%clk 0:02:19]} 15. f4 {[%clk 0:01:45]}  Bf5 {[%clk 0:02:09]} 16. Nd2 {[%clk 0:01:39]}  O-O-O {[%clk 0:02:01]} 17. Ndc4 {[%clk 0:01:39]}  Qc5 {[%clk 0:01:58]} 18. Nxf7 {[%clk 0:01:32]}  Rhe8 {[%clk 0:01:58]} 19. Nxd8 {[%clk 0:01:28]}  Bxd8 {[%clk 0:01:59]} 20. Ne5 {[%clk 0:01:22]}  Nxe5 {[%clk 0:01:54]} 21. fxe5 {[%clk 0:01:22]}  Nxc3 {[%clk 0:01:44]} 22. Rc1 {[%clk 0:01:18]}  Nxe2 {[%clk 0:01:44]} 23. Kxe2 {[%clk 0:00:59]}  Rxe5+ {[%clk 0:01:44]} 24. Be3 {[%clk 0:00:59]}  Qb5+ {[%clk 0:01:38]} 25. Kf2 {[%clk 0:00:56]}  c6 {[%clk 0:01:30]} 26. Kg1 {[%clk 0:00:51]}  Rxe3 {[%clk 0:01:27]} 0-1


[Site "https://www.chess.com"]

[Event "Titled Tuesday Blitz February 07 Early 2023"]
[White "Dinu, Dumitru-Daniel"]
[Black "Hertlein, Irena"]
[WhiteFideId "1208403"]
[BlackFideId "21817618"]
[WhiteElo "2203"]
[BlackElo "1994"]
[Result "1/2-1/2"]
[Round "03"]
[TimeControl "180+2"]
[Date "2023.02.07"]
[WhiteClock "0:01:36"]
[BlackClock "0:00:50"]

1. e4 {[%clk 0:03:00]}  c5 {[%clk 0:02:59]} 2. b3 {[%clk 0:02:59]}  g6 {[%clk 0:02:57]} 3. Bb2 {[%clk 0:02:58]}  Nf6 {[%clk 0:02:57]} 4. Nc3 {[%clk 0:02:58]}  d6 {[%clk 0:02:50]} 5. Bb5+ {[%clk 0:02:57]}  Bd7 {[%clk 0:02:49]} 6. Nge2 {[%clk 0:02:55]}  Bg7 {[%clk 0:02:47]} 7. Bxd7+ {[%clk 0:02:53]}  Qxd7 {[%clk 0:02:44]} 8. O-O {[%clk 0:02:53]}  Nc6 {[%clk 0:02:44]} 9. Nd5 {[%clk 0:02:48]}  e5 {[%clk 0:02:34]} 10. Nxf6+ {[%clk 0:02:45]}  Bxf6 {[%clk 0:02:33]} 11. Nc3 {[%clk 0:02:45]}  Ne7 {[%clk 0:02:30]} 12. a3 {[%clk 0:02:42]}  a5 {[%clk 0:02:26]} 13. Qe2 {[%clk 0:02:39]}  O-O {[%clk 0:02:24]} 14. Qc4 {[%clk 0:02:34]}  Bg7 {[%clk 0:02:21]} 15. Nd5 {[%clk 0:02:33]}  Nxd5 {[%clk 0:02:20]} 16. Qxd5 {[%clk 0:02:33]}  Qc6 {[%clk 0:02:19]} 17. Qxc6 {[%clk 0:02:27]}  bxc6 {[%clk 0:02:19]} 18. f4 {[%clk 0:02:27]}  exf4 {[%clk 0:02:15]} 19. Bxg7 {[%clk 0:02:27]}  Kxg7 {[%clk 0:02:16]} 20. Rxf4 {[%clk 0:02:27]}  a4 {[%clk 0:02:12]} 21. e5 {[%clk 0:02:23]}  axb3 {[%clk 0:02:10]} 22. cxb3 {[%clk 0:02:22]}  d5 {[%clk 0:02:05]} 23. a4 {[%clk 0:02:22]}  Rfe8 {[%clk 0:01:59]} 24. Raf1 {[%clk 0:02:17]}  Ra7 {[%clk 0:01:58]} 25. Rf6 {[%clk 0:02:17]}  Rxe5 {[%clk 0:01:51]} 26. Rxc6 {[%clk 0:02:16]}  Re2 {[%clk 0:01:49]} 27. Rxc5 {[%clk 0:02:12]}  Rxd2 {[%clk 0:01:49]} 28. h3 {[%clk 0:01:58]}  Rb2 {[%clk 0:01:24]} 29. Rb5 {[%clk 0:01:50]}  Rc7 {[%clk 0:01:11]} 30. Rf2 {[%clk 0:01:47]}  Rc1+ {[%clk 0:01:09]} 31. Rf1 {[%clk 0:01:44]}  Rcc2 {[%clk 0:01:09]} 32. Rd1 {[%clk 0:01:41]}  Rxg2+ {[%clk 0:01:08]} 33. Kh1 {[%clk 0:01:40]}  Rh2+ {[%clk 0:01:03]} 34. Kg1 {[%clk 0:01:40]}  Rbg2+ {[%clk 0:01:02]} 35. Kf1 {[%clk 0:01:40]}  Rf2+ {[%clk 0:00:57]} 36. Kg1 {[%clk 0:01:39]}  Rhg2+ {[%clk 0:00:51]} 37. Kh1 {[%clk 0:01:36]}  Rh2+ {[%clk 0:00:51]} 38. Kg1 {[%clk 0:01:36]}  Rhg2+ {[%clk 0:00:51]} 39. Kh1 {[%clk 0:01:36]}  Rh2+ {[%clk 0:00:50]} 1/2-1/2


[Site "https://www.chess.com"]

[Event "Titled Tuesday Blitz February 07 Early 2023"]
[White "ritanovikova"]
[Black "Goncalves, Davi Sulzbacher"]
[BlackFideId "2154510"]
[WhiteElo "2202"]
[BlackElo "2282"]
[Result "1-0"]
[Round "03"]
[TimeControl "180+2"]
[Date "2023.02.07"]
[WhiteClock "0:00:20"]
[BlackClock "0:00:07"]

1. e4 {[%clk 0:02:59]}  c5 {[%clk 0:02:58]} 2. Nc3 {[%clk 0:02:58]}  Nc6 {[%clk 0:02:58]} 3. d3 {[%clk 0:02:57]}  g6 {[%clk 0:02:58]} 4. Be3 {[%clk 0:02:57]}  d6 {[%clk 0:02:58]} 5. Qd2 {[%clk 0:02:58]}  Bg7 {[%clk 0:02:58]} 6. g3 {[%clk 0:02:57]}  Rb8 {[%clk 0:02:58]} 7. Bg2 {[%clk 0:02:58]}  b5 {[%clk 0:02:58]} 8. Nd1 {[%clk 0:02:58]}  Nf6 {[%clk 0:02:49]} 9. Bh6 {[%clk 0:02:57]}  Bxh6 {[%clk 0:02:37]} 10. Qxh6 {[%clk 0:02:58]}  Qa5+ {[%clk 0:02:37]} 11. Kf1 {[%clk 0:02:36]}  Ne5 {[%clk 0:02:21]} 12. h3 {[%clk 0:02:26]}  Ba6 {[%clk 0:02:06]} 13. f4 {[%clk 0:02:21]}  Qd2 {[%clk 0:02:00]} 14. Nf3 {[%clk 0:02:04]}  Nxf3 {[%clk 0:01:58]} 15. Bxf3 {[%clk 0:02:04]}  Qxc2 {[%clk 0:01:54]} 16. Be2 {[%clk 0:02:00]}  b4 {[%clk 0:01:49]} 17. Nf2 {[%clk 0:01:51]}  Nxe4 {[%clk 0:01:32]} 18. Nxe4 {[%clk 0:01:48]}  Bxd3 {[%clk 0:01:31]} 19. Nxd6+ {[%clk 0:01:34]}  exd6 {[%clk 0:01:30]} 20. Re1 {[%clk 0:01:35]}  Kd7 {[%clk 0:01:19]} 21. Qg7 {[%clk 0:01:27]}  Rhe8 {[%clk 0:00:44]} 22. Qxf7+ {[%clk 0:01:08]}  Kc6 {[%clk 0:00:44]} 23. Rh2 {[%clk 0:01:00]}  Bxe2+ {[%clk 0:00:36]} 24. Rhxe2 {[%clk 0:00:59]}  Qd3 {[%clk 0:00:36]} 25. Kf2 {[%clk 0:00:52]}  Qd4+ {[%clk 0:00:36]} 26. Kf1 {[%clk 0:00:49]}  Rxe2 {[%clk 0:00:32]} 27. Rxe2 {[%clk 0:00:49]}  Qd1+ {[%clk 0:00:30]} 28. Kf2 {[%clk 0:00:49]}  Qd4+ {[%clk 0:00:30]} 29. Kf1 {[%clk 0:00:48]}  Qd5 {[%clk 0:00:30]} 30. Qxa7 {[%clk 0:00:39]}  Qd1+ {[%clk 0:00:23]} 31. Kf2 {[%clk 0:00:38]}  Qd4+ {[%clk 0:00:22]} 32. Kf1 {[%clk 0:00:38]}  Rb7 {[%clk 0:00:17]} 33. Qa6+ {[%clk 0:00:36]}  Rb6 {[%clk 0:00:16]} 34. Qa8+ {[%clk 0:00:36]}  Kb5 {[%clk 0:00:15]} 35. Qe8+ {[%clk 0:00:35]}  Kc4 {[%clk 0:00:15]} 36. Rc2+ {[%clk 0:00:29]}  Kd5 {[%clk 0:00:12]} 37. Qa8+ {[%clk 0:00:25]}  Ke6 {[%clk 0:00:11]} 38. Re2+ {[%clk 0:00:21]}  Kf6 {[%clk 0:00:07]} 39. Qf8# {[%clk 0:00:20]} 1-0


[Site "https://www.chess.com"]

[Event "Titled Tuesday Blitz February 07 Early 2023"]
[White "Balabayeva, Xeniya"]
[Black "Kuchava, Ana"]
[WhiteFideId "13719688"]
[BlackFideId "13605348"]
[WhiteElo "2191"]
[BlackElo "2101"]
[Result "1-0"]
[Round "03"]
[TimeControl "180+2"]
[Date "2023.02.07"]
[WhiteClock "0:00:30"]
[BlackClock "0:00:04"]

1. e4 {[%clk 0:02:53]}  c5 {[%clk 0:02:59]} 2. Nf3 {[%clk 0:02:53]}  d6 {[%clk 0:02:59]} 3. Bb5+ {[%clk 0:02:51]}  Bd7 {[%clk 0:02:56]} 4. Bxd7+ {[%clk 0:02:50]}  Qxd7 {[%clk 0:02:57]} 5. O-O {[%clk 0:02:50]}  Nc6 {[%clk 0:02:56]} 6. Re1 {[%clk 0:02:50]}  Nf6 {[%clk 0:02:52]} 7. c3 {[%clk 0:02:50]}  e6 {[%clk 0:02:40]} 8. d4 {[%clk 0:02:49]}  cxd4 {[%clk 0:02:40]} 9. cxd4 {[%clk 0:02:50]}  d5 {[%clk 0:02:40]} 10. e5 {[%clk 0:02:50]}  Ne4 {[%clk 0:02:40]} 11. Nbd2 {[%clk 0:02:46]}  Nxd2 {[%clk 0:02:40]} 12. Bxd2 {[%clk 0:02:46]}  Be7 {[%clk 0:02:39]} 13. a3 {[%clk 0:02:42]}  O-O {[%clk 0:02:30]} 14. Rc1 {[%clk 0:02:36]}  Rac8 {[%clk 0:02:26]} 15. Rc3 {[%clk 0:02:35]}  Rc7 {[%clk 0:01:53]} 16. Rd3 {[%clk 0:02:34]}  Rfc8 {[%clk 0:01:49]} 17. h4 {[%clk 0:02:04]}  b5 {[%clk 0:01:24]} 18. h5 {[%clk 0:02:00]}  b4 {[%clk 0:01:13]} 19. Nh2 {[%clk 0:01:28]}  bxa3 {[%clk 0:01:10]} 20. bxa3 {[%clk 0:01:27]}  f5 {[%clk 0:00:49]} 21. exf6 {[%clk 0:01:07]}  Bxf6 {[%clk 0:00:47]} 22. Bf4 {[%clk 0:01:06]}  Rb7 {[%clk 0:00:45]} 23. Ng4 {[%clk 0:01:04]}  Bxd4 {[%clk 0:00:42]} 24. Rxd4 {[%clk 0:00:55]}  Nxd4 {[%clk 0:00:43]} 25. Qxd4 {[%clk 0:00:55]}  Rc4 {[%clk 0:00:43]} 26. Qe5 {[%clk 0:00:52]}  Qf7 {[%clk 0:00:33]} 27. g3 {[%clk 0:00:51]}  Rb6 {[%clk 0:00:28]} 28. Qg5 {[%clk 0:00:38]}  Kf8 {[%clk 0:00:17]} 29. h6 {[%clk 0:00:34]}  gxh6 {[%clk 0:00:07]} 30. Qd8+ {[%clk 0:00:30]}  Kg7 {[%clk 0:00:04]} 31. Bxh6+ {[%clk 0:00:30]}  Kg6 {[%clk 0:00:04]} 32. Qg5# {[%clk 0:00:30]} 1-0


[Site "https://www.chess.com"]

[Event "Titled Tuesday Blitz February 07 Early 2023"]
[White "Ricaurte Lopez, Juan Carlos"]
[Black "Qashashvili, Alexandre"]
[WhiteFideId "3600327"]
[BlackFideId "13600842"]
[WhiteElo "2226"]
[BlackElo "2505"]
[Result "1-0"]
[Round "03"]
[TimeControl "180+2"]
[Date "2023.02.07"]
[WhiteClock "0:02:27"]
[BlackClock "0:02:34"]

1. e4 {[%clk 0:03:00]}  c6 {[%clk 0:02:41]} 2. d4 {[%clk 0:03:00]}  d6 {[%clk 0:02:41]} 3. Nc3 {[%clk 0:02:57]}  Nf6 {[%clk 0:02:38]} 4. f4 {[%clk 0:02:56]}  Bg4 {[%clk 0:02:38]} 5. Be2 {[%clk 0:02:47]}  Bxe2 {[%clk 0:02:37]} 6. Qxe2 {[%clk 0:02:47]}  e5 {[%clk 0:02:36]} 7. dxe5 {[%clk 0:02:40]}  dxe5 {[%clk 0:02:37]} 8. fxe5 {[%clk 0:02:39]}  Nfd7 {[%clk 0:02:37]} 9. Nf3 {[%clk 0:02:38]}  Bc5 {[%clk 0:02:36]} 10. Bg5 {[%clk 0:02:34]}  Qc7 {[%clk 0:02:34]} 11. O-O-O {[%clk 0:02:30]}  Nxe5 {[%clk 0:02:33]} 12. Nxe5 {[%clk 0:02:29]}  Qxe5 {[%clk 0:02:34]} 13. Rd8# {[%clk 0:02:27]} 1-0


[Site "https://www.chess.com"]